bitfinex/quotes_ETHUSD_20241104
["timestamp","ask_amount","ask_price","bid_price","bid_amount"]
[1730680286735,3.67414,2449.6,2449.4,0.5603]
[1730680287084,3.77605349,2449.7,2449.4,0.5603]
[1730680287486,3.77561342,2450.0,2449.5,3.67407]
[1730680287699,3.67369,2449.9,2449.4,0.5603]
[1730680287921,3.67369,2449.9,2449.4,1.37391641]
[1730680288132,0.10205596,2449.8,2449.4,1.37391641]
[1730680288312,3.67369,2449.9,2449.4,1.37391641]
[1730680288513,0.10205585,2450.0,2449.4,1.37391641]
[1730680288716,3.6735,2450.0,2449.5,3.75585447]
[1730680289021,0.10205012,2450.0,2449.5,3.67421]
[1730680289222,7.44888886,2450.1,2449.5,3.75585009]
[1730680289424,3.77545886,2450.1,2449.5,3.75585009]
[1730680289792,3.77545886,2450.1,2449.5,4.55462865]
[1730680289993,3.77545886,2450.1,2449.5,4.55454865]
[1730680290184,0.10204553,2450.0,2449.5,0.88041865]
[1730680290391,3.67362,2449.9,2449.5,0.88041865]
[1730680290828,3.67362,2449.9,2449.4,4.23462]
[1730680291131,0.10204553,2450.0,2449.5,3.67415]
[1730680291810,3.77552553,2450.0,2449.5,3.67415]
[1730680292111,3.77552553,2450.0,2449.6,3.67405]
[1730680292112,0.10204553,2450.0,2449.6,3.67405]
[1730680292318,3.67341,2450.1,2449.7,0.5603]
[1730680292485,0.10204557,2450.0,2449.7,0.5603]
[1730680292812,0.10204557,2450.2,2449.7,4.657565]
[1730680293020,3.67339,2450.1,2449.7,0.983735]
[1730680293325,7.34678,2450.1,2449.7,0.983735]
[1730680294023,3.67393,2449.7,2449.3,3.0]
[1730680294239,3.67393,2449.7,2449.2,0.5603]
[1730680294240,0.10205563,2449.6,2449.2,0.5603]
[1730680294418,3.6743,2449.5,2449.2,0.5603]
[1730680294741,3.77651168,2449.4,2448.9,0.5603]
[1730680295030,3.67479,2449.2,2448.9,0.5603]
[1730680295216,3.67495,2449.1,2448.6,7.91126]
[1730680295543,3.67495,2449.1,2448.6,4.23577]
[1730680295835,7.34926,2449.3,2448.7,3.75699712]
[1730680296133,7.34927,2449.3,2448.7,3.75699712]
[1730680296297,3.6747,2449.2,2448.7,3.75699712]
[1730680297129,3.67437,2449.4,2448.9,0.5603]
[1730680297290,3.6743,2449.5,2448.9,4.31694076]
[1730680297291,3.77637595,2449.5,2448.9,4.31694076]
[1730680297496,3.77637595,2449.5,2448.9,5.57739993]
[1730680297727,7.45070595,2449.5,2448.9,5.57739993]
[1730680297930,0.63925458,2449.7,2449.0,3.67495]
[1730680297931,4.31323458,2449.7,2449.0,3.67495]
[1730680298240,3.77623511,2449.6,2449.1,3.67473]
[1730680298390,3.77623511,2449.6,2449.0,3.67495]
[1730680298588,3.77623511,2449.6,2449.0,8.19941092]
[1730680298828,3.67425,2449.5,2449.0,4.52446092]
[1730680299399,3.77623511,2449.6,2449.1,3.67477]
[1730680300213,7.45041511,2449.6,2449.1,3.67477]
[1730680300743,3.67422,2449.5,2449.0,4.52446092]
[1730680301105,3.67422,2449.5,2449.0,8.19935092]
[1730680302011,0.10206511,2449.6,2448.9,3.5603]
[1730680302221,3.67444,2449.4,2448.9,3.64195894]
[1730680302533,3.67452,2449.3,2448.9,3.64195894]
[1730680302839,3.67452,2449.3,2448.9,3.5603]
[1730680302996,3.67444,2449.4,2448.9,7.31707007]
[1730680303200,3.67444,2449.4,2448.9,8.87754217]
[1730680303438,3.67423,2449.5,2449.0,3.67491]
[1730680303740,3.67423,2449.5,2449.0,3.75656602]
[1730680304644,3.67439,2449.4,2448.9,5.1207721]
[1730680304934,3.67439,2449.4,2448.9,0.5603]
[1730680304935,3.67466,2449.2,2448.9,0.5603]
[1730680305633,3.77646509,2449.4,2448.9,4.23541]
[1730680305840,3.67459,2449.3,2448.9,0.5603]
[1730680306247,3.77646509,2449.4,2448.9,4.23541]
[1730680306539,7.45091509,2449.4,2448.9,4.23541]
[1730680306698,3.67455,2449.3,2448.9,4.23541]
[1730680308039,3.67455,2449.3,2448.7,3.67531]
[1730680308040,3.67493,2449.1,2448.7,0.5603]
[1730680308197,3.77675511,2449.2,2448.7,4.2357]
[1730680308399,0.10208347,2449.3,2448.9,3.67499]
[1730680308637,0.78,2449.5,2449.0,3.67485]
[1730680308638,4.55633347,2449.5,2449.0,3.67485]
[1730680309014,3.77633347,2449.5,2449.1,0.5603]
[1730680309337,0.10207512,2449.6,2449.1,1.05420653]
[1730680309547,3.77574663,2449.9,2449.4,3.67425]
[1730680309703,7.44950663,2449.9,2449.5,0.5603]
[1730680309901,3.77574663,2449.9,2449.5,0.5603]
[1730680310298,3.67378,2449.8,2449.5,0.5603]
[1730680311304,3.77574663,2449.9,2449.5,0.5603]
[1730680311867,3.67384,2449.8,2449.5,0.5603]
[1730680313379,3.67392,2449.7,2449.5,0.5603]
[1730680313878,7.34793,2449.7,2449.5,0.5603]
[1730680314057,3.67392,2449.7,2449.5,0.5603]
[1730680314368,0.10205926,2449.6,2449.1,7.90974]
[1730680314670,3.77612926,2449.6,2449.1,7.90973]
[1730680314856,3.67407,2449.6,2449.1,4.235]
[1730680315371,4.05151793,2449.7,2449.2,3.67464]
[1730680315548,7.82759416,2449.7,2449.2,3.67464]
[1730680315867,7.72556793,2449.7,2449.2,3.67464]
[1730680316240,3.67408,2449.6,2449.1,4.235]
[1730680316970,3.67408,2449.6,2449.1,7.90974]
[1730680317439,3.77614634,2449.6,2449.1,7.90974]
[1730680317638,3.67408,2449.6,2449.1,7.90974]
[1730680318164,4.05151793,2449.7,2449.2,3.67461]
[1730680318359,3.77598625,2449.7,2449.2,3.67461]
[1730680318544,7.44999625,2449.7,2449.2,3.67461]
[1730680318749,4.45378,2449.8,2449.3,3.67449]
[1730680318956,4.55583925,2449.8,2449.3,3.67449]
[1730680319354,4.55583925,2449.8,2449.1,1.78397102]
[1730680319355,3.67392,2449.7,2449.1,7.23509]
[1730680319553,3.6743,2449.5,2449.1,3.5603]
[1730680320640,3.67459,2449.3,2448.9,0.4233322]
[1730680320846,3.67459,2449.3,2448.8,7.91065]
[1730680321081,3.776668,2449.3,2448.9,0.4243608]
[1730680321376,3.67459,2449.3,2448.9,4.0994508]
[1730680322074,4.556458,2449.4,2449.0,3.67495]
[1730680322676,3.67401,2449.7,2449.1,0.5603]
[1730680322979,0.10206632,2449.7,2449.3,3.6744]
[1730680323364,0.10206632,2449.7,2449.4,3.67428]
[1730680323365,0.10206524,2449.7,2449.4,3.67428]
[1730680323857,0.10205754,2449.8,2449.4,3.67428]
[1730680324752,3.67371,2449.9,2449.5,0.5603]
[1730680326258,0.78,2450.1,2449.5,4.88739403]
[1730680326598,4.55544587,2450.1,2449.7,3.6739]
[1730680326965,0.78,2450.1,2449.7,3.6739]
[1730680327194,0.88204588,2450.1,2449.7,3.6739]
[1730680328658,0.78,2450.1,2449.7,3.6739]
[1730680329182,4.42343,2450.3,2449.9,4.23389]
[1730680329379,3.77520752,2450.2,2449.9,0.5603]
[1730680330155,4.42343,2450.3,2449.9,0.5603]
[1730680330357,0.10203734,2450.2,2449.9,0.5603]
[1730680330892,8.09655,2450.3,2449.9,0.5603]
[1730680331094,0.10203752,2450.2,2449.9,0.5603]
[1730680331896,3.77526752,2450.2,2449.9,0.5603]
[1730680332890,3.77521752,2450.2,2449.9,0.5603]
[1730680333571,5.24328875,2450.3,2449.4,4.23464]
[1730680333572,4.42403,2449.9,2449.4,4.23464]
[1730680333893,0.10205296,2450.2,2449.9,3.67359]
[1730680334105,3.77497725,2450.4,2450.0,0.5603]
[1730680334489,3.67309,2450.3,2450.0,0.5603]
[1730680334663,3.67317,2450.2,2450.0,0.5603]
[1730680336682,3.77497712,2450.4,2450.0,0.5603]
[1730680336881,3.67303,2450.3,2450.0,0.5603]
[1730680339469,3.67273,2450.5,2450.0,4.74682737]
[1730680339717,4.42293,2450.7,2450.0,4.07349737]
[1730680339876,0.7504,2450.9,2450.4,4.23305]
[1730680340075,4.42222,2451.1,2450.6,3.67244]
[1730680340317,4.52422381,2451.1,2450.6,3.67244]
[1730680340808,0.85240381,2451.1,2450.6,3.67244]
[1730680340982,4.52428381,2451.1,2450.6,3.67244]
[1730680341184,3.67199,2451.0,2450.5,3.6727]
[1730680341493,3.67219,2450.9,2450.5,1.090575]
[1730680341707,3.67199,2451.0,2450.5,4.84482035]
[1730680341905,7.34409,2451.0,2450.5,4.84482035]
[1730680342116,3.67199,2451.0,2450.5,4.84482035]
[1730680342317,3.67199,2451.0,2450.6,3.67255]
[1730680342787,3.67177,2451.2,2450.7,4.2327]
[1730680342788,3.67172,2451.2,2450.7,4.2327]
[1730680342994,0.8291,2451.3,2450.8,3.6722]
[1730680343195,3.77346577,2451.4,2450.9,3.67209]
[1730680343409,3.77344577,2451.4,2450.9,3.67209]
[1730680343698,0.8291,2451.5,2451.1,0.5603]
[1730680343895,0.93108464,2451.5,2451.1,0.5603]
[1730680344526,3.67137,2451.4,2451.1,0.5603]
[1730680344728,3.67137,2451.4,2451.0,6.67196]
[1730680344729,7.34348,2451.2,2450.8,0.5603]
[1730680344988,3.67167,2451.2,2450.8,0.5603]
[1730680345718,0.10199715,2451.3,2450.8,0.5603]
[1730680345922,3.67175,2451.2,2450.8,3.5603]
[1730680346923,7.34294,2451.4,2450.9,3.67198]
[1730680347129,3.67153,2451.3,2450.9,3.67198]
[1730680347488,3.77366832,2451.2,2450.8,3.5603]
[1730680347690,3.67168,2451.2,2450.8,7.23255]
[1730680347929,3.7734563,2451.4,2450.8,7.31414704]
[1730680348129,4.23371193,2451.4,2450.8,7.31414704]
[1730680348333,0.8291,2451.5,2450.8,0.5603]
[1730680348492,3.67164,2451.3,2450.8,4.23254]
[1730680348834,3.77339336,2451.4,2450.8,4.31413604]
[1730680349014,7.34342,2451.2,2450.8,0.5603]
[1730680349220,3.67167,2451.2,2450.8,0.5603]
[1730680350516,3.67193,2451.1,2450.8,0.5603]
[1730680350710,3.67193,2451.1,2450.8,3.5603]
[1730680351704,7.34386,2451.1,2450.8,3.5603]
[1730680352029,3.67193,2451.1,2450.8,0.5603]
[1730680352528,4.15103849,2451.2,2450.8,3.5603]
[1730680353051,7.34375,2451.1,2450.8,0.5603]
[1730680353337,3.67183,2451.1,2450.8,0.5603]
[1730680353624,4.15103849,2451.2,2450.8,3.5603]
[1730680354231,0.8291,2451.5,2450.8,7.23246]
[1730680354232,3.67139,2451.4,2450.8,7.23246]
[1730680354532,3.67113,2451.6,2451.1,3.67177]
[1730680354690,0.10198507,2451.5,2451.1,3.67177]
[1730680354895,3.77327507,2451.5,2451.1,3.67177]
[1730680355207,3.67137,2451.4,2450.9,0.5603]
[1730680355410,4.50089,2451.2,2450.8,3.0]
[1730680356197,8.17265,2451.2,2450.8,3.0]
[1730680356398,3.67184,2451.1,2450.7,4.2326]
[1730680356605,4.50086,2451.2,2450.7,7.90494]
[1730680356905,4.50086,2451.2,2450.7,4.2326]
[1730680357334,4.50086,2451.2,2450.7,7.90493]
[1730680357635,4.50086,2451.2,2450.8,0.08159639]
[1730680357838,4.50086,2451.2,2450.8,3.75384639]
[1730680358137,3.67152,2451.3,2450.9,3.67211]
[1730680358522,3.67168,2451.2,2450.8,0.08159639]
[1730680358831,3.67168,2451.2,2450.7,0.5603]
[1730680359131,3.67208,2451.0,2450.7,0.5603]
[1730680360692,3.77389552,2451.1,2450.7,0.5603]
[1730680360900,7.34383,2451.1,2450.7,0.5603]
[1730680362239,3.7739022,2451.1,2450.7,0.5603]
[1730680362444,7.34382,2451.1,2450.7,0.5603]
[1730680362608,3.6719,2451.1,2450.7,0.5603]
[1730680362812,3.77406221,2451.0,2450.7,0.5603]
[1730680363023,3.77406221,2451.0,2450.3,4.09871695]
[1730680363024,0.8116,2450.9,2450.3,3.98611695]
[1730680363225,3.6728,2450.5,2450.3,0.42581695]
[1730680363435,3.67286,2450.4,2450.3,0.42581695]
[1730680363638,0.9136193,2450.5,2450.1,0.5603]
[1730680363639,4.48434,2450.5,2450.1,0.5603]
[1730680363842,4.48434,2450.5,2450.1,4.65954729]
[1730680364050,3.67265,2450.6,2450.1,4.65946729]
[1730680364251,0.91362304,2450.7,2450.2,3.67311]
[1730680364455,4.58604304,2450.7,2450.2,3.67309]
[1730680364627,0.10202305,2450.7,2450.3,3.67295]
[1730680364831,3.77428592,2450.8,2450.4,0.5603]
[1730680365033,0.10201598,2450.8,2450.4,4.23316]
[1730680365232,8.25803508,2450.9,2450.4,4.23316]
[1730680365438,8.15602,2450.9,2450.4,4.23316]
[1730680365661,3.77435525,2450.8,2450.4,0.5603]
[1730680365856,3.67253,2450.7,2450.4,0.5603]
[1730680366025,3.67259,2450.6,2450.4,0.5603]
[1730680366226,0.10201525,2450.8,2450.4,0.5603]
[1730680366453,3.67242,2450.7,2450.4,0.5603]
[1730680367615,7.34494,2450.7,2450.4,0.5603]
[1730680368417,3.67261,2450.6,2450.2,3.67315]
[1730680368618,3.77467583,2450.6,2450.1,7.65951729]
[1730680368818,3.67266,2450.6,2450.1,7.65951729]
[1730680369044,3.67266,2450.6,2450.1,9.18316582]
[1730680369348,3.7746802,2450.6,2450.1,9.18316582]
[1730680369778,0.1020202,2450.6,2450.1,9.18316582]
[1730680370056,3.67272,2450.5,2450.1,9.18316582]
[1730680370931,3.67272,2450.5,2450.1,6.18316582]
[1730680372024,3.67257,2450.6,2450.1,6.18316582]
[1730680372224,3.67257,2450.6,2450.2,0.98564958]
[1730680372462,3.67242,2450.7,2450.2,4.74033579]
[1730680372671,3.67242,2450.7,2450.3,0.5603]
[1730680373171,3.6726,2450.6,2450.3,0.5603]
[1730680373333,3.67242,2450.7,2450.3,0.5603]
[1730680373729,3.67242,2450.7,2450.3,4.2333]
[1730680373934,3.67242,2450.7,2450.3,5.06655473]
[1730680374162,3.67242,2450.7,2450.3,1.39355473]
[1730680376260,3.67262,2450.6,2450.3,0.5603]
[1730680376577,3.67278,2450.5,2450.3,0.5603]
[1730680377081,3.67262,2450.6,2450.3,0.5603]
[1730680377245,7.34532,2450.6,2450.3,0.5603]
[1730680377442,3.67275,2450.5,2450.3,0.5603]
[1730680377869,3.67275,2450.5,2450.1,0.98622794]
[1730680378052,3.67302,2450.3,2450.1,0.42592794]
[1730680378380,3.67302,2450.3,2449.9,3.5603]
[1730680378381,3.67316,2450.2,2449.9,3.5603]
[1730680379140,3.67304,2450.3,2449.9,7.23389]
[1730680379553,3.67304,2450.3,2449.9,7.65987314]
[1730680380160,3.774895,2450.4,2449.9,11.33346314]
[1730680380422,3.774895,2450.4,2449.9,12.46675945]
[1730680380679,3.774895,2450.4,2449.9,8.79316945]
[1730680380885,7.447865,2450.4,2449.9,8.79316945]
[1730680381783,3.67311,2450.3,2449.9,2.11962945]
[1730680381990,3.77527533,2450.2,2449.9,2.11962945]
[1730680382190,3.77527533,2450.2,2449.9,0.42598314]
[1730680382552,3.67324,2450.2,2449.9,0.42598314]
[1730680383091,3.67303,2450.3,2449.9,0.42598314]
[1730680385787,3.77525534,2450.2,2449.9,0.42598314]
[1730680385960,3.67346,2450.0,2449.9,0.42598314]
[1730680386166,8.26037849,2450.1,2449.6,3.67398]
[1730680386482,0.10204493,2450.0,2449.6,4.1000583]
[1730680389508,8.15834,2450.1,2449.6,4.1000583]
[1730680389712,3.77550497,2450.0,2449.6,4.93350313]
[1730680389879,3.67365,2449.9,2449.6,1.25952313]
[1730680390075,3.77583746,2449.8,2449.6,0.4260783]
[1730680390304,3.67379,2449.8,2449.6,0.4260783]
[1730680390876,3.67391,2449.7,2449.6,0.4260783]
[1730680391225,3.67391,2449.7,2449.4,3.0]
[1730680392024,3.67391,2449.7,2449.4,3.42571424]
[1730680392813,4.49089,2449.8,2449.4,3.42571424]
[1730680393607,0.8171,2449.8,2449.5,3.67421]
[1730680393920,0.8171,2449.8,2449.5,4.80767042]
[1730680394282,0.8171,2449.8,2449.5,1.13346042]
[1730680394283,4.49087,2449.8,2449.5,1.13346042]
[1730680395510,4.49087,2449.8,2449.4,0.42571424]
[1730680395511,4.49087,2449.8,2449.4,3.42571424]
[1730680395732,0.8171,2449.8,2449.4,7.10003424]
[1730680395877,0.8171,2449.8,2449.4,3.42571424]
[1730680396075,3.77567585,2449.9,2449.5,3.6742]
[1730680396279,3.77567585,2449.9,2449.4,3.42571424]
[1730680396507,3.67377,2449.8,2449.4,7.86610566]
[1730680399025,3.77569585,2449.9,2449.5,3.6742]
[1730680399681,3.77569585,2449.9,2449.4,7.86610566]
[1730680401831,3.77569585,2449.9,2449.4,11.54040566]
[1730680401981,7.44941585,2449.9,2449.4,7.86605566]
[1730680402181,3.77569585,2449.9,2449.4,7.86605566]
[1730680402382,3.77569585,2449.9,2449.5,3.67419]
[1730680403083,3.67297,2450.4,2449.6,4.54558267]
[1730680403305,0.1020356,2450.4,2450.0,4.23369]
[1730680403526,3.7749256,2450.4,2450.0,0.5603]
[1730680404782,7.4479356,2450.4,2450.0,0.5603]
[1730680406098,3.67303,2450.3,2450.0,0.5603]
[1730680408313,3.77521545,2450.2,2449.8,0.5603]
[1730680408484,3.67354,2450.0,2449.6,4.65992545]
[1730680408700,3.77558589,2450.0,2449.6,4.65992545]
[1730680409632,3.6732,2450.2,2449.7,3.6739]
[1730680410129,7.44853583,2450.2,2449.7,3.6739]
[1730680410291,0.10204583,2450.2,2449.8,3.67368]
[1730680410630,4.59107585,2450.3,2449.9,0.5603]
[1730680410995,3.67303,2450.3,2449.9,0.5603]
[1730680411196,3.77502555,2450.4,2449.9,4.2339]
[1730680411810,3.67308,2450.3,2449.9,0.5603]
[1730680413209,3.67353,2450.0,2449.7,3.0]
[1730680413939,3.67333,2450.1,2449.8,0.5603]
[1730680415239,3.77551607,2450.0,2449.8,0.5603]
[1730680415453,3.77551607,2450.0,2449.7,3.0]
[1730680415739,3.67347,2450.0,2449.7,3.0]
[1730680416953,4.48983,2449.8,2449.6,0.42567545]
[1730680417238,4.48983,2449.8,2449.2,0.5603]
[1730680417239,0.10205736,2449.7,2449.2,0.5603]
[1730680417443,3.67433,2449.5,2449.0,5.35548437]
[1730680417599,3.67433,2449.5,2449.2,0.42543629]
[1730680417803,4.48524,2449.4,2449.2,0.42543629]
[1730680418045,4.48524,2449.4,2449.0,4.23525]
[1730680418246,4.48524,2449.4,2449.0,5.91577437]
[1730680418452,3.7766128,2449.3,2449.0,0.98570283]
[1730680418605,3.7766128,2449.3,2449.0,0.42540283]
[1730680418805,3.67454,2449.3,2449.0,0.42540283]
[1730680419641,4.5873078,2449.4,2449.0,0.42540283]
[1730680420022,3.67453,2449.3,2449.0,0.42540283]
[1730680420778,0.10207782,2449.2,2449.0,0.42540283]
[1730680420959,3.67481,2449.1,2448.8,3.5603]
[1730680421128,3.67481,2449.1,2448.7,3.0]
[1730680421571,3.67481,2449.1,2448.7,3.4255469]
[1730680421870,3.67512,2448.9,2448.7,0.4255469]
[1730680422079,4.48577,2449.0,2448.7,0.4255469]
[1730680422281,3.67526,2448.8,2448.7,0.4255469]
[1730680422482,7.45246444,2448.9,2448.4,4.39403405]
[1730680422652,7.45246444,2448.9,2448.4,4.66118366]
[1730680422653,7.45243444,2448.9,2448.4,4.66118366]
[1730680423035,0.10209444,2448.9,2448.5,3.67569]
[1730680423537,3.77721444,2448.9,2448.5,3.67569]
[1730680423979,3.77721444,2448.9,2448.4,7.66125366]
[1730680424305,3.77721444,2448.9,2448.4,8.88010505]
[1730680424634,7.45244444,2448.9,2448.4,8.88010505]
[1730680424835,3.77721444,2448.9,2448.4,8.88010505]
[1730680425073,7.45240444,2448.9,2448.4,8.88010505]
[1730680425280,3.77721444,2448.9,2448.4,8.88010505]
[1730680428909,3.77721444,2448.9,2448.4,0.42509366]
[1730680428910,3.67571,2448.5,2448.4,0.42509366]
[1730680429201,3.9043468,2449.2,2447.9,0.0615117]
[1730680429202,3.67604,2448.3,2447.9,0.0615117]
[1730680429374,0.10212085,2448.2,2447.9,0.76747486]
[1730680429580,3.77814951,2448.3,2447.9,1.56903988]
[1730680430395,3.77814951,2448.3,2447.9,4.56903988]
[1730680430700,3.77814951,2448.3,2447.9,3.48713952]
[1730680431073,3.77814951,2448.3,2447.9,0.48713952]
[1730680432064,3.67624,2448.2,2447.9,0.48713952]
[1730680432881,3.77856978,2448.1,2447.9,0.0615117]
[1730680433067,7.45501978,2448.1,2447.9,0.0615117]
[1730680433274,0.8108,2448.0,2447.9,0.48707066]
[1730680433570,0.8108,2448.0,2447.9,0.0615117]
[1730680435943,0.91292833,2448.0,2447.9,0.0615117]
[1730680436103,4.58939833,2448.0,2447.9,0.0615117]
[1730680437046,5.41597816,2448.0,2447.9,0.0615117]
[1730680438636,9.32032496,2448.0,2447.9,0.0615117]
[1730680438804,9.21819663,2448.0,2447.9,0.0615117]
[1730680440506,5.31384983,2448.0,2447.9,0.0615117]
[1730680440809,5.4160016,2448.0,2447.9,0.0615117]
[1730680442033,3.77862177,2448.0,2447.9,0.0615117]
[1730680443363,4.58942177,2448.0,2447.9,0.0615117]
[1730680444092,8.49376857,2448.0,2447.9,0.0615117]
[1730680444242,8.3916168,2448.0,2447.9,0.0615117]
[1730680444938,11.3916168,2448.0,2447.9,0.0615117]
[1730680445174,12.89941848,2448.0,2447.9,0.0615117]
[1730680446976,12.90941848,2448.0,2447.9,0.0615117]
[1730680447296,12.90941848,2448.0,2447.9,1.7e-06]
[1730680447297,13.45941848,2448.0,2447.9,1.7e-06]
[1730680448279,4.49519,2447.0,2446.7,0.0615117]
[1730680448483,3.67808,2447.0,2446.7,0.97040396]
[1730680448683,0.10217705,2447.1,2446.7,4.64878396]
[1730680449607,3.78008705,2447.1,2446.7,0.97040396]
[1730680449785,3.67806,2447.0,2446.7,0.97040396]
[1730680450173,3.67812,2446.9,2446.7,0.97040396]
[1730680450635,3.78008705,2447.1,2446.7,0.97040396]
[1730680450636,3.67798,2447.0,2446.7,0.6218117]
[1730680452314,3.78029247,2446.9,2446.7,0.6218117]
[1730680452668,7.45851247,2446.9,2446.7,0.6218117]
[1730680452868,3.78029247,2446.9,2446.7,0.6218117]
[1730680453080,7.45850247,2446.9,2446.7,0.6218117]
[1730680453401,3.67827,2446.8,2446.7,0.0615117]
[1730680454176,4.49537,2446.8,2446.7,0.0615117]
[1730680454380,3.67932,2446.1,2445.7,4.6799]
[1730680454717,3.67932,2446.1,2445.7,5.10502306]
[1730680454718,0.10221593,2446.1,2445.7,5.10502306]
[1730680455085,3.78158593,2446.1,2445.8,0.5603]
[1730680455287,3.67962,2445.9,2445.7,1.42522306]
[1730680455635,3.67958,2446.0,2445.7,1.0]
[1730680455789,7.35856,2446.2,2445.8,0.5603]
[1730680456116,0.10221591,2446.1,2445.7,1.0]
[1730680456299,0.10221591,2446.1,2445.8,0.5603]
[1730680457106,4.50555,2446.7,2445.8,0.5603]
[1730680457107,0.10221382,2446.3,2445.9,3.67962]
[1730680457306,3.67894,2446.4,2445.9,3.67955]
[1730680457510,0.10220169,2446.3,2445.9,3.67955]
[1730680457722,0.10220169,2446.3,2446.0,0.423985]
[1730680458996,0.10220169,2446.3,2446.0,4.103455]
[1730680459188,0.10220169,2446.3,2446.0,0.423985]
[1730680459512,0.10220169,2446.3,2446.0,4.103445]
[1730680459724,3.78093168,2446.5,2446.0,4.103445]
[1730680459928,0.10219879,2446.6,2446.2,3.67917]
[1730680460281,3.67836,2446.8,2446.3,3.67892]
[1730680460631,0.10218789,2446.7,2446.2,3.67906]
[1730680460778,3.78067789,2446.7,2446.2,3.67906]
[1730680460980,3.78067789,2446.7,2446.3,0.50176565]
[1730680461183,3.67858,2446.6,2446.3,0.50176565]
[1730680461416,0.1021891,2446.5,2446.3,0.50176565]
[1730680461616,3.7809091,2446.5,2446.3,0.50176565]
[1730680461799,3.78090866,2446.5,2446.3,0.50176565]
[1730680462450,3.78090866,2446.5,2446.1,4.3385965]
[1730680463223,3.67887,2446.4,2446.1,4.3385965]
[1730680463431,3.67887,2446.4,2445.9,0.5603]
[1730680463432,3.78126597,2446.3,2445.9,0.5603]
[1730680463725,3.78126597,2446.3,2445.8,6.67965]
[1730680463726,3.67921,2446.2,2445.7,1.5603]
[1730680463917,3.67957,2446.0,2445.7,1.5603]
[1730680464122,0.10221392,2445.9,2445.7,1.5603]
[1730680464326,3.78183392,2445.9,2445.7,1.0]
[1730680464949,0.10221392,2445.9,2445.7,1.0]
[1730680465247,3.78179067,2446.0,2445.7,1.0]
[1730680466027,3.67962,2445.9,2445.7,1.0]
[1730680466214,3.78199059,2445.8,2445.7,1.0]
[1730680466647,4.57639059,2445.8,2445.7,1.0]
[1730680469861,0.10222059,2445.8,2445.7,1.0]
[1730680470061,0.10222351,2446.0,2445.7,1.0]
[1730680470510,0.10222351,2446.0,2445.7,4.67992]
[1730680470711,0.10222011,2446.1,2445.8,0.467992]
[1730680470922,0.10222011,2446.1,2445.8,1.028292]
[1730680471125,4.47333,2446.4,2445.8,1.028292]
[1730680471126,0.10221062,2446.3,2445.9,3.6796]
[1730680471328,3.78124062,2446.3,2445.8,4.708042]
[1730680471751,3.78124062,2446.3,2445.8,1.028292]
[1730680471953,3.78124062,2446.3,2445.8,4.708032]
[1730680472116,3.78124062,2446.3,2445.9,0.9387822]
[1730680473431,7.46036062,2446.3,2445.9,0.9387822]
[1730680473622,3.78124062,2446.3,2445.9,0.9387822]
[1730680474025,0.10221062,2446.3,2446.2,3.67917]
[1730680474328,0.10219876,2446.6,2446.3,3.67895]
[1730680474535,0.10219876,2446.6,2446.3,7.3579]
[1730680474940,0.10219876,2446.6,2446.3,3.67895]
[1730680475140,3.67835,2446.8,2446.3,3.67895]
[1730680475141,0.10219055,2446.7,2446.3,3.67895]
[1730680475335,0.10219055,2446.7,2446.3,4.4883499]
[1730680475676,0.10219055,2446.7,2445.9,8.522739]
[1730680475677,3.78069055,2446.7,2446.2,3.67906]
[1730680476031,3.78069055,2446.7,2446.2,7.35815]
[1730680476260,0.10219055,2446.7,2446.3,3.67901]
[1730680476468,0.10219055,2446.7,2446.4,4.23904]
[1730680476629,4.47253,2446.9,2446.4,4.23904]
[1730680476630,0.10218705,2446.8,2446.4,4.23904]
[1730680476820,0.10218705,2446.8,2446.5,3.67869]
[1730680477045,3.78027593,2447.0,2446.4,5.42131968]
[1730680477271,3.78027593,2447.0,2446.5,3.67869]
[1730680477475,3.78027593,2447.0,2446.4,5.42131968]
[1730680477685,0.10218593,2447.0,2446.5,3.67872]
[1730680477888,0.10218593,2447.0,2446.6,0.91000397]
[1730680478181,3.78017593,2447.0,2446.6,0.91000397]
[1730680478342,0.10218593,2447.0,2446.6,0.91000397]
[1730680478543,0.1021805,2447.1,2446.6,4.58847397]
[1730680478759,0.1021805,2447.1,2446.7,3.67841]
[1730680478980,0.1021805,2447.1,2446.7,4.5051144]
[1730680479478,3.7800805,2447.1,2446.7,0.8267044]
[1730680481052,0.1021805,2447.1,2446.4,3.5603]
[1730680481255,3.67836,2446.8,2446.4,3.5603]
[1730680481455,0.10218966,2446.7,2446.4,3.5603]
[1730680481667,0.10218966,2446.7,2446.4,7.23915]
[1730680481873,0.10218966,2446.7,2446.4,8.72141568]
[1730680482382,3.78053924,2446.8,2446.4,2.04256568]
[1730680482583,3.78053924,2446.8,2446.4,0.5603]
[1730680483296,0.10218924,2446.8,2446.4,4.23915]
[1730680484891,0.1021892,2447.0,2446.5,3.9043468]
[1730680485101,0.1021892,2447.1,2446.9,3.67811]
[1730680485390,0.10217096,2447.1,2446.9,3.67811]
[1730680485576,3.6777,2447.2,2446.7,7.35666]
[1730680485779,0.10217202,2447.1,2446.7,4.80442068]
[1730680485979,0.10217202,2447.1,2446.8,3.6782]
[1730680486761,0.10217201,2447.2,2446.9,3.67805]
[1730680487399,0.10217201,2447.2,2447.0,3.67795]
[1730680487559,0.10217201,2447.2,2446.9,3.67805]
[1730680487761,0.10216448,2447.3,2446.9,4.52629607]
[1730680488976,3.77977448,2447.3,2446.7,3.67842]
[1730680489182,0.8262,2446.9,2446.6,3.0]
[1730680489389,0.10217952,2446.8,2446.6,3.0]
[1730680491190,0.10217952,2446.8,2446.6,6.67856]
[1730680491679,0.10217952,2446.8,2446.6,3.67856]
[1730680493203,0.10217951,2446.8,2446.6,3.67856]
[1730680494207,0.10217951,2446.8,2446.5,3.67863]
[1730680494497,0.10217951,2446.8,2446.5,7.35728]
[1730680494689,0.10217951,2446.8,2446.6,3.67855]
[1730680494994,0.10217951,2446.8,2446.6,3.239713]
[1730680496725,0.8262,2446.9,2446.7,3.67831]
[1730680496726,0.10217948,2446.9,2446.7,3.67831]
[1730680497033,0.10217766,2447.1,2446.7,3.67831]
[1730680498042,0.10217766,2447.1,2447.0,3.67797]
[1730680498199,0.92836308,2447.4,2447.0,3.67797]